fUST/lending_fUST_20241106
["ID","MTS","AMOUNT","RATE_DAILY","PERIOD"]
[341367871,1730844560084,-164.0771071,0.00035268,2]
[341367872,1730844560106,-235.716575,0.00035675,2]
[341367873,1730844560129,-158.722236,0.00035736,2]
[341367874,1730844560150,-150.0,0.00036,2]
[341367875,1730844560171,-151.0,0.00036301,120]
[341367876,1730844560193,-158.722236,0.00036331,2]
[341367877,1730844565028,520.83333333,0.00020816,2]
[341367878,1730844573124,-158.722236,0.00036927,2]
[341367879,1730844582972,150.0,0.00036,2]
[341367880,1730844606936,465.13684019,0.00032372,2]
[341367901,1730844632661,-158.722236,0.00037522,2]
[341367902,1730844632670,-165.0,0.00038,2]
[341367904,1730844632679,-711.4073658,0.000382,109]
[341367906,1730844632689,-434.61739837,0.00038542,111]
[341367963,1730844638785,-276.78996741,0.00038542,111]
[341367965,1730844638797,-500.0,0.00038567,3]
[341367967,1730844638808,-500.0,0.00038567,3]
[341367969,1730844638821,-500.0,0.00038567,3]
[341367972,1730844638832,-500.0,0.00038567,3]
[341367974,1730844638844,-500.0,0.00038567,3]
[341367976,1730844638856,-500.0,0.00038567,3]
[341367979,1730844638868,-598.0,0.00038567,3]
[341367981,1730844638880,-169.031259,0.00038575,2]
[341367983,1730844638892,-500.0,0.00038999,15]
[341367985,1730844638904,-500.0,0.00038999,15]
[341367987,1730844638915,-500.0,0.00038999,15]
[341367990,1730844638927,-500.0,0.00038999,15]
[341367991,1730844638938,-500.0,0.00038999,15]
[341367992,1730844638950,-500.0,0.00038999,15]
[341367993,1730844638962,-634.76724055,0.00038999,15]
[341367994,1730844638973,-500.0,0.00038999,15]
[341367995,1730844638985,-500.0,0.00038999,15]
[341367997,1730844638997,-500.0,0.00038999,15]
[341368000,1730844639009,-150.0,0.00039,2]
[341368002,1730844639021,-151.0,0.00039452,120]
[341368004,1730844639032,-711.40736578,0.00039661,118]
[341368006,1730844639042,-509.570863,0.000399,2]
[341368008,1730844639052,-165.0,0.00040274,14]
[341368011,1730844639171,-600.0,0.00040319,2]
[341368012,1730844639187,-197.24673725,0.00040583,2]
[341368013,1730844639197,-500.0,0.00040682,7]
[341368014,1730844639207,-5000.0,0.00040682,120]
[341368015,1730844639217,-500.0,0.00040683,2]
[341368016,1730844639228,-602.80545793,0.00040684,2]
[341368017,1730844639238,-5562.80848591,0.00040684,2]
[341368018,1730844639248,-600.0,0.00040739,2]
[341368019,1730844639259,-153.0,0.00040751,30]
[341368020,1730844639270,-153.0,0.00040751,30]
[341368021,1730844639280,-153.0,0.00040751,30]
[341368022,1730844639290,-153.0,0.00040751,30]
[341368023,1730844639299,-153.0,0.00040751,30]
[341368024,1730844639308,-157.1768559,0.00040751,30]
[341368025,1730844639318,-153.0,0.00040751,30]
[341368026,1730844639327,-711.40736578,0.00040781,120]
[341368027,1730844639336,-1174.89755656,0.00040895,28]
[341368028,1730844639350,-72.38979598,0.00040895,28]
[341368029,1730844639360,-153.0,0.00040959,2]
[341368030,1730844639373,-175.22003283,0.00040994,2]
[341368031,1730844639383,-206.67497289,0.00040995,2]
[341368036,1730844640658,-4630.77831585,0.00040995,2]
[341368037,1730844640668,-276.01654792,0.00040995,2]
[341368038,1730844640680,-223.98345208,0.00040995,2]
[341368039,1730844640690,-108.41096139,0.00040995,2]
[341368040,1730844640701,-290.09826881,0.00040995,2]
[341368041,1730844640713,-601.4907698,0.00040995,2]
[341368042,1730844640724,-230.71251643,0.00040995,3]
[341368043,1730844640736,-5000.0,0.00040998,120]
[341368044,1730844640746,-243.9271795,0.00040998,30]
[341368045,1730844640755,-803.51140178,0.00040999,120]
[341368046,1730844640769,-136.77859822,0.00040999,120]
[341368047,1730844640779,-800.0,0.00041,120]
[341368048,1730844640788,-161.0,0.00041,14]
[341368049,1730844640797,-403.47140178,0.00041,2]
[341368050,1730844640809,-4596.52859822,0.00041,2]
[341368051,1730844640818,-1190.97249905,0.00041,2]
[341368052,1730844640829,-303.61538036,0.00041,2]
[341368063,1730844644539,-3505.41212059,0.00041,2]
[341368064,1730844644549,-252.60813934,0.00041,2]
[341368065,1730844644562,-1167.49999999,0.00041,2]
[341368081,1730844647074,165.0,0.00033,2]
[341368082,1730844647397,165.0,0.00033151,2]
[341368083,1730844647740,165.0,0.00034521,2]
[341368084,1730844649540,170.0,0.00036247,2]
[341368085,1730844810190,169.031259,0.00013973,2]
[341368086,1730845175987,520.83333333,0.00020816,2]
[341368091,1730845626130,-150.0,0.000287,2]
[341368092,1730845626157,-491.32657107,0.00030526,2]
[341368093,1730845644118,-29.50676226,0.00030526,2]
[341368094,1730845644141,-300.0,0.00034247,30]
[341368095,1730845644164,-240.0,0.00034247,30]
[341368096,1730845644185,-162.489284,0.00035131,2]
[341368097,1730845644207,-247.1617464,0.00035259,2]
[341368098,1730845644229,-150.0,0.00036,2]
[341368099,1730845644251,-165.0,0.00038663,14]
[341368100,1730845644272,-150.0,0.00039,2]
[341368101,1730845644294,-177.85184146,0.000396,118]
[341368102,1730845644316,-161.924,0.000397,2]
[341368103,1730845644337,-177.85184144,0.00040367,120]
[341368104,1730845644452,-242.02302885,0.00040403,2]
[341368105,1730845645131,-1659.62463913,0.00040403,2]
[341368106,1730845647095,-242.97766639,0.00040403,2]
[341368107,1730845651088,-956.41323942,0.00040403,2]
[341368108,1730845721409,4233.85803821,0.00015,7]
[341368113,1730845725208,3201.0,0.00020377,2]
[341368117,1730845752178,-59201.67249816,0.00022,30]
[341368118,1730845752199,-520.83333333,0.00024053,2]
[341368119,1730845752220,-1309.62978914,0.00034728,12]
[341368120,1730845752242,-801.12341582,0.00035,2]
[341368121,1730845752264,-802.94393619,0.0003502,10]
[341368122,1730845760081,-875.35606381,0.0003502,10]
[341368123,1730845760104,-1398.59,0.0003502,10]
[341368124,1730845760126,-500.0,0.00035029,7]
[341368125,1730845760150,-500.0,0.00035029,7]
[341368126,1730845760172,-251.09592958,0.00035029,7]
[341368127,1730845760194,-45.04890255,0.00035029,7]
[341368128,1730845760225,-454.95109745,0.00035029,7]
[341368129,1730845760250,-413.47672405,0.00035029,7]
[341368130,1730845760271,-21300.02449836,0.0003503,2]
[341368131,1730845765131,-5382.35396308,0.0003503,2]
[341368135,1730845787805,451.78,0.00020816,2]
[341368136,1730845787828,69.05333333,0.00020816,2]
[341368173,1730845831870,-267.16174637,0.00034422,7]
[341368179,1730845838269,-247.779434,0.0003246,2]
[341368180,1730845838279,-247.779434,0.00033145,2]
[341368181,1730845838292,-247.779434,0.0003383,2]
[341368182,1730845838303,-2257.75727928,0.00034422,7]
[341368183,1730845838314,-2394.24743952,0.00034422,2]
[341368184,1730845838325,-614.15207277,0.00034422,5]
[341368185,1730845838335,-169.66652113,0.00034422,5]
[341368186,1730845838345,-150.64205859,0.00034422,2]
[341368187,1730845838355,-150.0,0.00035,2]
[341368188,1730845838365,-157.05296934,0.00035029,7]
[341368189,1730845838375,-21311.40855824,0.0003503,2]
[341368190,1730845838384,-12766.83554227,0.0003588,30]
[341368191,1730845838396,-260.49589265,0.0003624,2]
[341368192,1730845838406,-500.0,0.00038356,14]
[341368193,1730845838416,-500.0,0.00038356,14]
[341368194,1730845838428,-2058.1,0.00038356,14]
[341368195,1730845838440,-500.0,0.00038356,14]
[341368196,1730845838449,-500.0,0.00038356,2]
[341368197,1730845838459,-500.0,0.00038356,14]
[341368198,1730845838468,-921.63,0.00038356,14]
[341368199,1730845838478,-500.0,0.0003863,14]
[341368200,1730845838487,-564.19972737,0.0003863,14]
[341368201,1730845838497,-680.47363614,0.0003863,14]
[341368202,1730845838514,-1377.62636386,0.0003863,14]
[341368203,1730845838524,-500.0,0.0003863,14]
[341368204,1730845838533,-154.8135434,0.0003863,2]
[341368205,1730845838545,-500.0,0.0003863,14]
[341368206,1730845838554,-921.63,0.0003863,14]
[341368207,1730845838564,-500.0,0.00038904,14]
[341368208,1730845838573,-1454.60275395,0.00038904,14]
[341368209,1730845838605,-603.49724605,0.00038904,14]
[341368210,1730845838614,-500.0,0.00038904,14]
[341368211,1730845838624,-500.0,0.00038904,14]
[341368212,1730845838634,-921.63,0.00038904,14]
[341368213,1730845838644,-138.23246816,0.00039,2]
[341368214,1730845838658,-11.76753184,0.00039,2]
[341368215,1730845838668,-469.27210699,0.00039178,14]
[341368216,1730845838677,-2058.1,0.00039178,14]
[341368217,1730845838687,-500.0,0.00039178,14]
[341368218,1730845838696,-921.63,0.00039178,14]
[341368219,1730845838705,-2058.1,0.00039452,14]
[341368220,1730845838715,-546.8855663,0.00039452,14]
[341368221,1730845838725,-921.63,0.00039452,14]
[341368222,1730845838734,-2058.1,0.00039726,14]
[341368223,1730845838744,-921.63,0.00039726,14]
[341368224,1730845838753,-883.6921181,0.0004,2]
[341368243,1730845839873,-2723.01818414,0.0004,2]
[341368244,1730845839882,-4715.18181586,0.0004,7]
[341368245,1730845839894,-814.44117593,0.0004,7]
[341368285,1730845842987,-641.58245273,0.00038356,2]
[341368287,1730845842997,-203.14754727,0.0004,7]
[341368291,1730845843012,-680.22945994,0.0004,7]
[341368294,1730845843022,-3005.32936413,0.0004,4]
[341368351,1730845845976,-1926.60549982,0.0004,4]
[341368358,1730845846064,89.44048029,0.00013973,2]
[341368359,1730845846091,79.59077871,0.00013973,2]
[341368364,1730846399264,520.83333333,0.00020816,2]
[341368368,1730846735141,-153.88639402,0.0002566,2]
[341368369,1730846826082,-520.83333333,0.0002437,2]
[341368370,1730846826105,-509.91452519,0.00025396,2]
[341368371,1730846830105,-11.11318051,0.00025396,2]
[341368372,1730846830126,-244.69984932,0.0002566,2]
[341368373,1730846852093,-164.447619,0.00025225,2]
[341368374,1730846852114,-195.658217,0.00025379,2]
[341368375,1730846852137,-360.97751038,0.0002566,2]
[341368376,1730846853088,-2240.43624628,0.0002566,2]
[341368377,1730846853111,-239.172447,0.00025694,2]
[341368378,1730846853139,-161.72838124,0.00026514,2]
[341368379,1730846853161,-234.889332,0.00026614,2]
[341368380,1730846853185,-1396.31040126,0.00026638,2]
[341368381,1730846853208,-300.0,0.00026735,2]
[341368382,1730846853231,-300.0,0.00026735,2]
[341368383,1730846853255,-500.0,0.00026736,2]
[341368384,1730846853279,-500.0,0.00026736,2]
[341368385,1730846853302,-500.0,0.00026736,2]
[341368386,1730846853324,-520.32657763,0.00026736,2]
[341368387,1730846853349,-500.0,0.00026736,2]
[341368388,1730846853371,-500.0,0.00026736,2]
[341368389,1730846853398,-500.0,0.00026736,2]
[341368390,1730846853422,-500.0,0.00026736,2]
[341368391,1730846853444,-343.34241742,0.00026736,2]
[341368392,1730846853467,-500.0,0.00026736,2]
[341368393,1730846853490,-500.0,0.00026736,2]
[341368394,1730846853513,-500.0,0.00026736,2]
[341368395,1730846853537,-500.0,0.00026736,2]
[341368396,1730846853559,-500.0,0.00026736,2]
[341368397,1730846853579,-500.0,0.00026736,2]
[341368398,1730846853603,-500.0,0.00026736,2]
[341368399,1730846853624,-500.0,0.00026736,2]
[341368400,1730846853647,-207.22269134,0.00026736,2]
[341368402,1730846903276,169.031259,0.00013973,2]
[341368403,1730846951132,-520.83333333,0.00022001,2]
[341368404,1730846951157,-1013.040692,0.00025738,2]
[341368405,1730846951182,-1013.040692,0.00026423,2]
[341368406,1730846951205,-300.0,0.00026734,2]
[341368407,1730846951228,-300.0,0.00026734,2]
[341368408,1730846951252,-500.0,0.00026735,2]
[341368409,1730846951278,-500.0,0.00026735,2]
[341368410,1730846951303,-500.0,0.00026735,2]
[341368411,1730846951326,-500.0,0.00026735,2]
[341368412,1730846951350,-266.51139045,0.00026735,2]
[341368413,1730846951374,-500.0,0.00026735,2]
[341368414,1730846951397,-518.51527773,0.00026735,2]
[341368415,1730846951421,-500.0,0.00026735,2]
[341368416,1730846951445,-500.0,0.00026735,2]
[341368417,1730846951471,-500.0,0.00026735,2]
[341368418,1730846951497,-500.0,0.00026735,2]
[341368419,1730846951521,-500.0,0.00026735,2]
[341368420,1730846951544,-500.0,0.00026735,2]
[341368421,1730846951566,-397.78626114,0.00026735,2]
[341368422,1730846951587,-500.0,0.00026735,2]
[341368423,1730846951612,-500.0,0.00026735,2]
[341368424,1730846951633,-500.0,0.00026735,2]
[341368425,1730846951655,-500.0,0.00026735,2]
[341368426,1730846951677,-500.0,0.00026735,2]
[341368427,1730846951701,-500.0,0.00026735,2]
[341368428,1730846951724,-500.0,0.00026735,2]
[341368429,1730846951748,-500.0,0.00026735,2]
[341368430,1730846951770,-500.0,0.00026735,2]
[341368431,1730846951794,-500.0,0.00026735,2]
[341368432,1730846951817,-500.0,0.00026735,2]
[341368433,1730846951853,-500.0,0.00026735,2]
[341368434,1730846951876,-500.0,0.00026735,2]
[341368435,1730846951899,-500.0,0.00026735,2]
[341368436,1730846951921,-500.0,0.00026735,2]
[341368437,1730846951943,-500.0,0.00026735,2]
[341368438,1730846951966,-500.0,0.00026735,2]
[341368439,1730846951992,-500.0,0.00026735,2]
[341368440,1730846952014,-500.0,0.00026735,2]
[341368441,1730846952037,-510.22024813,0.00026735,2]
[341368442,1730846952059,-500.0,0.00026735,2]
[341368443,1730846952081,-500.0,0.00026735,2]
[341368444,1730846952105,-500.0,0.00026735,2]
[341368445,1730846952128,-500.0,0.00026735,2]
[341368446,1730846952151,-500.0,0.00026735,2]
[341368447,1730846952174,-500.0,0.00026735,2]
[341368448,1730846952199,-500.0,0.00026735,2]
[341368449,1730846952225,-500.0,0.00026735,2]
[341368450,1730846952247,-500.0,0.00026735,2]
[341368451,1730846952370,-5000.0,0.00026739,2]
[341368452,1730846952392,-363.23905338,0.00026739,2]
[341368453,1730846952415,-6882.01821184,0.0002674,2]
[341368454,1730846954242,-18017.98178816,0.0002674,2]
[341368455,1730846954264,-263.39049237,0.000268,2]
[341368456,1730846954287,-500.0,0.000268,2]
[341368457,1730846954309,-500.0,0.000268,2]
[341368458,1730846954331,-410.25161071,0.000268,2]
[341368459,1730846954353,-1013.040692,0.00027108,2]
[341368460,1730846954375,-500.0,0.000272,2]
[341368461,1730846954396,-500.0,0.000272,2]
[341368462,1730846954419,-169.018561,0.00027248,2]
[341368463,1730846954441,-169.018561,0.00027282,2]
[341368464,1730846954464,-169.018561,0.00027316,2]
[341368465,1730846954487,-169.018561,0.0002735,2]
[341368466,1730846954509,-169.018561,0.00027384,2]
[341368467,1730846954530,-500.8436675,0.00027467,5]
[341368468,1730846954551,-500.0,0.000282,5]
[341368469,1730846954573,-500.0,0.000282,5]
[341368470,1730846954595,-500.0,0.000282,5]
[341368471,1730846954619,-500.0,0.000282,2]
[341368472,1730846954643,-1000.0,0.0002857,5]
[341368473,1730846954666,-189.2051024,0.0002862,2]
[341368474,1730846954689,-3000.0,0.000287,2]
[341368475,1730846954713,-3000.0,0.0002871,2]
[341368476,1730846954736,-5000.0,0.00028718,2]
[341368477,1730846954757,-166.728,0.0002872,20]
[341368478,1730846954779,-3000.0,0.0002872,2]
[341368479,1730846954802,-3000.0,0.0002873,2]
[341368480,1730846954822,-3000.0,0.0002874,2]
[341368481,1730846954845,-5000.0,0.00028749,2]
[341368482,1730846954867,-4454.039951,0.0002875,2]
[341368483,1730846954888,-500.0,0.000288,5]
[341368484,1730846954909,-151.84,0.00028808,3]
[341368485,1730846954939,-1396.31040124,0.00028818,2]
[341368486,1730846954963,-420.0,0.0002891,2]
[341368487,1730846954989,-420.0,0.00029407,2]
[341368488,1730846955013,-1000.0,0.0002957,5]
[341368489,1730846955036,-1000.0,0.0002957,5]
[341368490,1730846955059,-1000.0,0.0002957,5]
[341368491,1730846955084,-775.32846314,0.0002957,2]
[341368492,1730846955108,-151.0,0.0003,120]
[341368493,1730846955132,-151.0,0.0003,120]
[341368494,1730846955156,-272.66825,0.0003,2]
[341368495,1730846955179,-164.525,0.0003,2]
[341368496,1730846955200,-168.0,0.0003,2]
[341368497,1730846955224,-169.8032054,0.00030137,2]
[341368498,1730846955246,-512.06528953,0.00030137,2]
[341368499,1730846955266,-200.0,0.000305,120]
[341368500,1730846955288,-151.0,0.00030675,7]
[341368501,1730846955310,-151.0,0.00030675,7]
[341368502,1730846955334,-151.0,0.00030675,7]
[341368503,1730846955358,-151.0,0.00030675,7]
[341368504,1730846955381,-151.0,0.00030675,7]
[341368505,1730846955404,-953.72077917,0.00030999,2]
[341368519,1730846962109,-442.58962207,0.00030999,2]
[341368520,1730846962132,-290.955828,0.00030999,7]
[341368521,1730846962154,-151.0,0.00030999,7]
[341368522,1730846962176,-151.0,0.00030999,7]
[341368523,1730846962198,-151.0,0.00030999,7]
[341368524,1730846962222,-151.0,0.00030999,7]
[341368525,1730846962245,-151.0,0.00030999,7]
[341368526,1730846962268,-291.424478,0.00030999,7]
[341368527,1730846962290,-151.0,0.00030999,7]
[341368528,1730846962313,-153.088852,0.00030999,7]
[341368529,1730846962336,-151.0,0.00030999,7]
[341368530,1730846962359,-151.0,0.00030999,7]
[341368531,1730846962382,-151.0,0.00030999,7]
[341368532,1730846962404,-151.0,0.00030999,7]
[341368533,1730846962426,-151.0,0.00030999,7]
[341368534,1730846962448,-151.0,0.00030999,7]
[341368535,1730846962469,-584.19602122,0.0003101,30]
[341368536,1730846962491,-232.87149401,0.00031075,5]
[341368537,1730846962514,-587.0,0.00031264,2]
[341368538,1730846962536,-369.99076838,0.00031945,120]
[341368539,1730846962558,-800.04442664,0.00032075,5]
[341368540,1730846962580,-1500.0,0.00032075,5]
[341368541,1730846962600,-200.0,0.000322,120]
[341368542,1730846962621,-310.0,0.00032348,2]
[341368543,1730846962641,-182.030034,0.00032877,120]
[341368544,1730846962661,-1396.31040124,0.00033179,2]
[341368545,1730846962682,-151.0,0.00033342,120]
[341368546,1730846962703,-151.0,0.000335,14]
[341368547,1730846962723,-151.0,0.000335,14]
[341368548,1730846962745,-153.62,0.000335,31]
[341368549,1730846962768,-153.62,0.000335,31]
[341368550,1730846962792,-153.62,0.000335,31]
[341368551,1730846962816,-153.62,0.000335,31]
[341368552,1730846962840,-153.62,0.000335,31]
[341368553,1730846962863,-153.62,0.000335,31]
[341368554,1730846962885,-792.0,0.00033809,2]
[341368555,1730846962905,-350.77329,0.000339,120]
[341368556,1730846962925,-151.0,0.00034,120]
[341368557,1730846962945,-263.8,0.00034,2]
[341368558,1730846962965,-155.0,0.0003442,30]
[341368559,1730846962986,-151.65403793,0.0003442,30]
[341368560,1730846964127,-3.34596207,0.0003442,30]
[341368561,1730846964152,-155.0,0.0003442,30]
[341368562,1730846964173,-155.0,0.0003442,30]
[341368563,1730846964194,-155.0,0.0003442,30]
[341368564,1730846964215,-174.80981786,0.0003442,30]
[341368565,1730846964237,-155.0,0.00034422,30]
[341368566,1730846964257,-257.08789431,0.0003468,2]
[341368567,1730846964277,-1502.81459949,0.00035029,2]
[341368568,1730846964297,-1038.7737925,0.00035318,5]
[341368569,1730846974111,-4079.06786483,0.00026737,2]
[341368570,1730846974131,-151.463428,0.00030999,7]
[341368571,1730846974152,-4036.27220137,0.00033837,2]
[341368590,1730847011402,238.14,0.00020816,2]
[341368591,1730847011423,158.4938136,0.00020816,2]
[341368592,1730847011446,124.19951973,0.00020816,2]
[341368641,1730847038238,-151.0,0.0003,120]
[341368642,1730847038248,-151.0,0.00030999,7]
[341368643,1730847038258,-151.0,0.00030999,7]
[341368644,1730847038267,-151.0,0.00030999,7]
[341368645,1730847038276,-151.0,0.00030999,7]
[341368646,1730847038285,-151.0,0.00030999,7]
[341368647,1730847038295,-151.0,0.00030999,7]
[341368648,1730847038304,-151.0,0.00033534,120]
[341368649,1730847038313,-12690.17306523,0.00033837,2]
[341368650,1730847038322,-237.42,0.00034,2]
[341368651,1730847038331,-1579.88,0.00034584,120]
[341368653,1730847038341,-14379.0103563,0.000349,2]
[341368654,1730847038351,-1396.31040124,0.00035359,2]
[341368655,1730847038361,-1579.88,0.00035543,120]
[341368656,1730847038372,-153.62,0.000356,31]
[341368658,1730847038383,-153.62,0.000356,31]
[341368660,1730847038395,-153.62,0.000356,31]
[341368662,1730847038405,-153.62,0.000356,31]
[341368663,1730847038415,-153.62,0.000356,31]
[341368664,1730847038426,-153.62,0.000356,31]
[341368665,1730847038437,-153.62,0.000356,31]
[341368666,1730847038447,-153.62,0.000356,31]
[341368667,1730847038457,-153.62,0.000356,31]
[341368668,1730847038469,-153.62,0.000356,31]
[341368669,1730847038479,-153.62,0.000356,31]
[341368670,1730847038490,-153.62,0.000356,31]
[341368671,1730847038500,-166.300874,0.00035736,2]
[341368672,1730847038510,-433.461028,0.00035736,2]
[341368673,1730847038521,-879.835989,0.00035736,2]
[341368674,1730847038533,-683.092385,0.00035736,2]
[341368675,1730847038545,-320.935655,0.00035736,2]
[341368676,1730847038555,-195.519109,0.00035736,2]
[341368678,1730847038565,-165.951273,0.00035736,2]
[341368680,1730847038576,-185.389682,0.00035736,2]
[341368681,1730847038588,-151.0,0.00036182,14]
[341368682,1730847038600,-151.0,0.00036182,14]
[341368683,1730847038610,-151.0,0.00036182,14]
[341368684,1730847038620,-151.0,0.00036182,14]
[341368685,1730847038632,-151.0,0.00036182,14]
[341368686,1730847038643,-151.0,0.00036182,14]
[341368687,1730847038654,-151.0,0.00036182,14]
[341368688,1730847038664,-151.0,0.00036182,14]
[341368689,1730847038674,-151.0,0.00036182,14]
[341368690,1730847038685,-151.0,0.00036182,14]
[341368691,1730847038694,-166.300874,0.00036182,2]
[341368692,1730847038704,-433.461028,0.00036182,2]
[341368693,1730847038714,-879.835989,0.00036182,2]
[341368694,1730847038724,-683.092385,0.00036182,2]
[341368695,1730847038733,-320.935655,0.00036182,2]
[341368696,1730847038742,-1579.88,0.00036502,120]
[341368697,1730847038752,-160.0,0.00036599,3]
[341368698,1730847038763,-242.15936892,0.00036619,14]
[341368699,1730847038775,-151.0,0.00036629,14]
[341368700,1730847038786,-151.0,0.00036629,14]
[341368701,1730847038797,-151.0,0.00036629,14]
[341368702,1730847038806,-151.0,0.00036629,2]
[341368703,1730847038816,-151.0,0.00036629,14]
[341368704,1730847038827,-151.0,0.00036629,14]
[341368705,1730847038837,-151.0,0.00036629,14]
[341368706,1730847038847,-151.0,0.00036629,14]
[341368707,1730847038857,-151.0,0.00036629,14]
[341368708,1730847038867,-168.470712,0.00036629,14]
[341368709,1730847038878,-151.0,0.00036629,14]
[341368710,1730847038888,-151.0,0.00036629,14]
[341368711,1730847038900,-151.0,0.00036629,14]
[341368712,1730847038912,-195.519109,0.00036629,2]
[341368713,1730847038921,-166.300874,0.00036629,2]
[341368714,1730847038931,-433.461028,0.00036629,2]
[341368715,1730847038940,-879.835989,0.00036629,2]
[341368716,1730847038950,-683.092385,0.00036629,2]
[341368717,1730847038960,-320.935655,0.00036629,2]
[341368718,1730847038969,-151.0,0.00037068,120]
[341368719,1730847038979,-166.300874,0.00037076,2]
[341368720,1730847038990,-433.461028,0.00037076,2]
[341368721,1730847039058,-879.835989,0.00037076,2]
[341368722,1730847039068,-683.092385,0.00037076,2]
[341368723,1730847039077,-320.935655,0.00037076,2]
[341368724,1730847039087,-1579.88,0.00037461,120]
[341368725,1730847039098,-195.519109,0.00037522,2]
[341368726,1730847039108,-166.300874,0.00037522,2]
[341368727,1730847039120,-433.461028,0.00037522,2]
[341368728,1730847039130,-879.835989,0.00037522,2]
[341368729,1730847039140,-683.092385,0.00037522,2]
[341368730,1730847039151,-320.935655,0.00037522,2]
[341368731,1730847039162,-1396.31040124,0.00037539,2]
[341368732,1730847039174,-577.47018309,0.00037616,60]
[341368733,1730847039183,-272.66825,0.00037676,2]
[341368734,1730847039192,-152.621367,0.00037676,14]
[341368735,1730847039202,-153.62,0.000377,31]
[341368736,1730847039211,-153.62,0.000377,31]
[341368737,1730847039221,-153.62,0.000377,31]
[341368738,1730847039230,-153.62,0.000377,31]
[341368739,1730847039239,-153.62,0.000377,31]
[341368740,1730847039249,-153.62,0.000377,31]
[341368741,1730847039258,-153.62,0.000377,31]
[341368742,1730847039268,-153.62,0.000377,31]
[341368743,1730847039278,-153.62,0.000377,31]
[341368744,1730847039287,-153.62,0.000377,31]
[341368745,1730847039297,-153.62,0.000377,31]
[341368746,1730847039307,-153.62,0.000377,31]
[341368747,1730847039318,-151.0,0.00038,120]
[341368748,1730847039328,-237.42,0.00038,2]
[341368749,1730847039338,-151.0,0.000382,14]
[341368750,1730847039347,-151.0,0.000382,14]
[341368751,1730847039357,-151.0,0.000382,14]
[341368752,1730847039367,-151.0,0.000382,14]
[341368753,1730847039377,-151.0,0.000382,14]
[341368754,1730847039387,-151.0,0.000382,14]
[341368755,1730847039396,-151.0,0.000382,14]
[341368756,1730847039406,-151.0,0.000382,14]
[341368757,1730847039415,-151.0,0.000382,14]
[341368758,1730847039424,-151.0,0.000382,14]
[341368759,1730847039434,-151.0,0.000382,14]
[341368760,1730847039444,-151.0,0.000382,14]
[341368761,1730847039453,-151.0,0.000382,14]
[341368762,1730847039463,-151.0,0.000382,14]
[341368763,1730847039472,-151.0,0.000382,14]
[341368764,1730847039482,-151.0,0.000382,14]
[341368765,1730847039491,-151.0,0.000382,14]
[341368766,1730847039500,-165.62695,0.000382,14]
[341368767,1730847039509,-151.0,0.000382,14]
[341368768,1730847039519,-284.216508,0.000382,14]
[341368769,1730847039529,-151.0,0.000382,14]
[341368770,1730847039539,-151.0,0.000382,14]
[341368771,1730847039548,-151.0,0.000382,14]
[341368772,1730847039558,-151.0,0.000382,14]
[341368773,1730847039567,-3566.69350433,0.000382,109]
[341368774,1730847039576,-3566.69350431,0.000382,109]